bitfinex-derivatives/quotes_BTCF0:USTF0_20230101
["timestamp","ask_amount","ask_price","bid_price","bid_amount"]
[1672548342137,0.8350668,16538.0,16537.0,0.00680466]
[1672548342449,1.1357668,16538.0,16537.0,0.00680466]
[1672548344550,2.08770324,16538.0,16537.0,0.00680466]
[1672548346856,1.1357668,16538.0,16537.0,0.00680466]
[1672548350218,0.8350668,16538.0,16537.0,0.00680466]
[1672548350426,1.1357668,16538.0,16537.0,0.00680466]
[1672548351164,2.08770324,16538.0,16537.0,0.00680466]
[1672548353361,1.1357668,16538.0,16537.0,0.00680466]
[1672548354632,1.1357668,16538.0,16537.0,0.0067136]
[1672548358197,0.7746,16538.0,16537.0,0.0067136]
[1672548358420,1.0753,16538.0,16537.0,0.0067136]
[1672548359471,2.02749211,16538.0,16537.0,0.0067136]
[1672548360097,1.72679211,16538.0,16537.0,0.0067136]
[1672548360310,2.02749211,16538.0,16537.0,0.0067136]
[1672548361675,1.0753,16538.0,16537.0,0.0067136]
[1672548363038,0.7746,16538.0,16537.0,0.0067136]
[1672548363243,1.0753,16538.0,16537.0,0.0067136]
[1672548363883,2.02749211,16538.0,16537.0,0.0067136]
[1672548364091,2.08795891,16538.0,16537.0,0.0067136]
[1672548368502,1.1357668,16538.0,16537.0,0.0067136]
[1672548373344,1.1357668,16538.0,16537.0,0.00604225]
[1672548374506,2.08778612,16538.0,16537.0,0.00604225]
[1672548375128,1.78708612,16538.0,16537.0,0.00604225]
[1672548375340,2.08778612,16538.0,16537.0,0.00604225]
[1672548386067,1.78708612,16538.0,16537.0,0.00604225]
[1672548386292,2.08778612,16538.0,16537.0,0.00604225]
[1672548389958,1.1357668,16538.0,16537.0,0.00604225]
[1672548397004,2.08775171,16538.0,16537.0,0.00604225]
[1672548400790,1.78705171,16538.0,16537.0,0.00604225]
[1672548401101,2.08775171,16538.0,16537.0,0.00604225]
[1672548406047,1.1357668,16538.0,16537.0,0.00604225]
[1672548406886,0.8350668,16538.0,16537.0,0.00604225]
[1672548407208,1.1357668,16538.0,16537.0,0.00604225]
[1672548409518,0.8350668,16538.0,16537.0,0.00604225]
[1672548409833,1.1357668,16538.0,16537.0,0.00604225]
[1672548412136,2.08792578,16538.0,16537.0,0.00604225]
[1672548418237,2.02745898,16538.0,16537.0,0.00604225]
[1672548420132,2.02745898,16538.0,16537.0,0.00586136]
[1672548423279,1.0753,16538.0,16537.0,0.00586136]
[1672548424340,1.1357668,16538.0,16537.0,0.00586136]
[1672548426857,0.8350668,16538.0,16537.0,0.00586136]
[1672548427066,1.1357668,16538.0,16537.0,0.00527523]
[1672548428122,0.8350668,16538.0,16537.0,0.00527523]
[1672548428332,1.1357668,16538.0,16537.0,0.00527523]
[1672548429065,1.1357668,16538.0,16537.0,0.00474771]
[1672548431164,1.1357668,16538.0,16537.0,0.00427294]
[1672548433076,1.1357668,16538.0,16537.0,0.00384565]
[1672548434525,2.08780014,16538.0,16537.0,0.00384565]
[1672548436949,1.1357668,16538.0,16537.0,0.00384565]
[1672548442090,1.1357668,16538.0,16537.0,0.00346109]
[1672548444203,1.1357668,16538.0,16537.0,0.00311499]
[1672548446196,1.1357668,16538.0,16537.0,0.0028035]
[1672548448305,1.1357668,16538.0,16537.0,0.00252316]
[1672548449979,0.8350668,16538.0,16537.0,0.00252316]
[1672548450198,1.1357668,16538.0,16537.0,0.00252316]
[1672548457141,1.1357668,16538.0,16537.0,0.00227085]
[1672548459019,1.1357668,16538.0,16537.0,0.00204377]
[1672548459231,0.8350668,16538.0,16537.0,0.00204377]
[1672548459445,1.1357668,16538.0,16537.0,0.00204377]
[1672548461227,1.1357668,16538.0,16537.0,0.0018394]
[1672548463123,0.8350668,16538.0,16537.0,0.00165547]
[1672548463657,1.1357668,16538.0,16537.0,0.00165547]
[1672548466071,1.13566736,16538.0,16537.0,0.00165547]
[1672548470183,2.08776037,16538.0,16537.0,0.00165547]
[1672548472174,2.08776037,16538.0,16537.0,0.00148993]
[1672548472389,1.13566736,16538.0,16537.0,0.00148993]
[1672548474062,1.13566736,16538.0,16537.0,0.00134094]
[1672548476174,1.13566736,16538.0,16537.0,0.00120685]
[1672548477329,1.07520056,16538.0,16537.0,0.00120685]
[1672548478064,0.77450056,16538.0,16537.0,0.00120685]
[1672548478277,1.07520056,16538.0,16537.0,0.00108617]
[1672548481949,0.77450056,16538.0,16537.0,0.00108617]
[1672548482167,1.07520056,16538.0,16537.0,0.00108617]
[1672548483327,1.13566736,16538.0,16537.0,0.00108617]
[1672548487115,1.13566736,16538.0,16537.0,0.00097756]
[1672548489212,1.13566736,16538.0,16537.0,0.00087981]
[1672548491945,1.13566736,16538.0,16537.0,0.00079183]
[1672548493320,0.83496736,16538.0,16537.0,0.00079183]
[1672548493517,1.13566736,16538.0,16537.0,0.00079183]
[1672548494050,1.13566736,16538.0,16537.0,0.00071265]
[1672548494784,2.08769278,16538.0,16537.0,0.00071265]
[1672548498776,1.78699278,16538.0,16537.0,0.00071265]
[1672548498990,2.08769278,16538.0,16537.0,0.00071265]
[1672548500875,1.78699278,16538.0,16537.0,0.00071265]
[1672548501502,2.08769278,16538.0,16537.0,0.00071265]
[1672548508233,1.78699278,16538.0,16537.0,0.00071265]
[1672548508443,2.08769278,16538.0,16537.0,0.00071265]
[1672548510137,1.13566736,16538.0,16537.0,0.00071265]
[1672548512633,1.13566736,16538.0,16537.0,0.00064139]
[1672548514644,1.13566736,16538.0,16537.0,0.00057726]
[1672548516754,1.13566736,16538.0,16537.0,0.00051726]
[1672548517059,0.83496736,16538.0,16537.0,0.00051726]
[1672548517264,1.13566736,16538.0,16537.0,0.00051726]
[1672548524634,1.13566736,16538.0,16537.0,0.00045726]
[1672548526724,1.13566736,16538.0,16537.0,0.00039726]
[1672548527361,0.83496736,16538.0,16537.0,0.00039726]
[1672548527569,1.13566736,16538.0,16537.0,0.00039726]
[1672548528192,0.83496736,16538.0,16537.0,0.00039726]
[1672548528407,1.13566736,16538.0,16537.0,0.00039726]
[1672548528829,1.13566736,16538.0,16537.0,0.00033726]
[1672548530516,0.83496736,16538.0,16537.0,0.00033726]
[1672548530729,1.13566736,16538.0,16537.0,0.00027726]
[1672548532413,0.83496736,16538.0,16537.0,0.00027726]
[1672548532626,1.13566736,16538.0,16537.0,0.00027726]
[1672548537247,1.07520056,16538.0,16537.0,0.00027726]
[1672548543351,1.13566736,16538.0,16537.0,0.00027726]
[1672548547237,1.13566736,16538.0,16537.0,0.00021726]
[1672548549130,1.13566736,16538.0,16537.0,0.00015726]
[1672548551134,1.13566736,16538.0,16537.0,9.726e-05]
[1672548553231,1.13566736,16538.0,16537.0,3.726e-05]
[1672548554387,0.83496736,16538.0,16537.0,3.726e-05]
[1672548554598,1.13566736,16538.0,16537.0,3.726e-05]
[1672548555334,0.05,16537.0,16536.0,7.726e-05]
[1672548556594,0.7275,16537.0,16536.0,0.00107726]
[1672548557953,0.7875,16537.0,16536.0,0.00107726]
[1672548558596,1.0882,16537.0,16536.0,0.00107726]
[1672548559535,1.0882,16537.0,16536.0,0.00096954]
[1672548561425,1.0882,16537.0,16536.0,0.00087259]
[1672548562167,2.0401825,16537.0,16536.0,0.00087259]
[1672548566994,1.7394825,16537.0,16536.0,0.00087259]
[1672548567209,2.0401825,16537.0,16536.0,0.00087259]
[1672548567525,1.7394825,16537.0,16536.0,0.00087259]
[1672548567731,2.0401825,16537.0,16536.0,0.00087259]
[1672548569522,1.7394825,16537.0,16536.0,0.00087259]
[1672548569735,2.0401825,16537.0,16536.0,0.00087259]
[1672548570364,2.0401825,16537.0,16536.0,0.00078534]
[1672548571202,1.0882,16537.0,16536.0,0.00078534]
[1672548572254,1.0882,16537.0,16536.0,0.00070681]
[1672548574569,1.0882,16537.0,16536.0,0.00063613]
[1672548575504,0.7875,16537.0,16536.0,0.00063613]
[1672548575715,1.0882,16537.0,16536.0,0.00063613]
[1672548576562,1.0882,16537.0,16536.0,0.00057252]
[1672548578454,2.04001388,16537.0,16536.0,0.00057252]
[1672548583077,1.0882,16537.0,16536.0,0.00057252]
[1672548583287,2.0399539,16537.0,16536.0,0.00057252]
[1672548585710,1.0882,16537.0,16536.0,0.00057252]
[1672548587170,0.7875,16537.0,16536.0,0.00057252]
[1672548587385,1.0882,16537.0,16536.0,0.00057252]
[1672548592231,1.0882,16537.0,16536.0,0.00051252]
[1672548594221,1.0882,16537.0,16536.0,0.00045252]
[1672548595170,0.7875,16537.0,16536.0,0.00045252]
[1672548595376,1.0882,16537.0,16536.0,0.00045252]
[1672548595588,0.7875,16537.0,16536.0,0.00045252]
[1672548595797,1.0882,16537.0,16536.0,0.00045252]
[1672548596321,1.0882,16537.0,16536.0,0.00039252]
[1672548598315,1.0882,16537.0,16536.0,0.00033252]
[1672548598528,0.7875,16537.0,16536.0,0.00033252]
[1672548598740,1.0882,16537.0,16536.0,0.00033252]
[1672548603362,1.14867046,16537.0,16536.0,0.00033252]
[1672548603989,2.10068322,16537.0,16536.0,0.00033252]
[1672548606095,1.14867046,16537.0,16536.0,0.00033252]
[1672548607250,1.14867046,16537.0,16536.0,0.00027252]
[1672548609251,1.14867046,16537.0,16536.0,0.00021252]
[1672548611135,0.84797046,16537.0,16536.0,0.00021252]
[1672548611352,1.14867046,16537.0,16536.0,0.00015252]
[1672548613248,1.14867046,16537.0,16536.0,9.252e-05]
[1672548613662,0.84797046,16537.0,16536.0,9.252e-05]
[1672548613873,1.14867046,16537.0,16536.0,9.252e-05]
[1672548620186,0.84797046,16537.0,16536.0,9.252e-05]
[1672548620407,1.14867046,16537.0,16536.0,9.252e-05]
[1672548621555,0.84797046,16537.0,16536.0,9.252e-05]
[1672548621758,1.14867046,16537.0,16536.0,9.252e-05]
[1672548623016,0.84797046,16537.0,16536.0,9.252e-05]
[1672548623233,1.14867046,16537.0,16536.0,9.252e-05]
[1672548629964,1.14867046,16537.0,16536.0,3.252e-05]
[1672548631758,2.748e-05,16535.0,16533.0,0.10010711]
[1672548631967,0.95219325,16535.0,16533.0,0.10010711]
[1672548632692,0.05,16534.0,16533.0,0.10010711]
[1672548632907,0.05,16534.0,16533.0,0.10710711]
[1672548634495,0.067,16534.0,16533.0,0.10710711]
[1672548641219,0.017,16534.0,16533.0,0.10710711]
[1672548648588,0.017,16534.0,16533.0,0.40780711]
[1672548649117,0.017,16534.0,16533.0,0.10710711]
[1672548649318,0.017,16534.0,16533.0,0.40780711]
[1672548651316,0.017,16534.0,16533.0,0.10710711]
[1672548651948,0.95219325,16535.0,16533.0,0.85710711]
[1672548652155,0.06047046,16537.0,16534.0,0.6507]
[1672548652368,0.95226577,16538.0,16536.0,0.6007]
[1672548652581,0.67409309,16538.0,16536.0,0.6007]
[1672548652799,0.67409309,16538.0,16537.0,0.05]
[1672548652800,0.6559623,16538.0,16537.0,0.05]
[1672548653432,0.7164291,16538.0,16537.0,0.05]
[1672548654363,0.7344291,16538.0,16537.0,0.058]
[1672548654574,0.0784668,16538.0,16537.0,0.058]
[1672548657513,0.018,16538.0,16537.0,0.058]
[1672548663513,0.0784668,16538.0,16537.0,0.058]
[1672548665093,0.0784668,16538.0,16537.0,0.3587]
[1672548677919,0.0784668,16538.0,16537.0,0.058]
[1672548678129,0.0784668,16538.0,16537.0,0.3587]
[1672548688013,0.0784668,16538.0,16537.0,0.058]
[1672548688329,0.0784668,16538.0,16537.0,0.3587]
[1672548691695,0.0784668,16538.0,16537.0,0.058]
[1672548691909,0.0784668,16538.0,16537.0,0.3587]
[1672548694844,0.0784668,16538.0,16537.0,0.058]
[1672548695170,0.0784668,16538.0,16537.0,0.3587]
[1672548704540,0.0784668,16538.0,16537.0,0.35855861]
[1672548709887,0.0784668,16538.0,16537.0,0.05785861]
[1672548710097,0.0784668,16538.0,16537.0,0.35855861]
[1672548717471,0.018,16538.0,16537.0,0.35855861]
[1672548723566,0.0784668,16538.0,16537.0,0.35855861]
[1672548726191,0.0784668,16538.0,16537.0,0.05785861]
[1672548726402,0.0784668,16538.0,16537.0,0.35855861]
[1672548726815,0.0784668,16538.0,16537.0,0.05785861]
[1672548727031,0.0784668,16538.0,16537.0,0.35855861]
[1672548727859,0.0784668,16538.0,16537.0,0.05785861]
[1672548728078,0.0784668,16538.0,16537.0,0.35855861]
[1672548731026,0.0784668,16538.0,16537.0,0.05785861]
[1672548731236,0.0784668,16538.0,16537.0,0.35855861]
[1672548753084,0.0784668,16538.0,16537.0,0.35838597]
[1672548762964,0.0784668,16538.0,16537.0,0.05768597]
[1672548763173,0.0784668,16538.0,16537.0,0.35838597]
[1672548766855,0.0784668,16538.0,16537.0,0.05768597]
[1672548767173,0.0784668,16538.0,16537.0,0.35838597]
[1672548776010,0.07830166,16538.0,16537.0,0.35838597]
[1672548777576,0.01783486,16538.0,16537.0,0.3087]
[1672548777998,0.31783486,16538.0,16537.0,0.3087]
[1672548778733,0.31783486,16538.0,16537.0,0.008]
[1672548778941,0.05,16537.0,16534.0,0.3507]
[1672548779157,0.3007,16535.0,16533.0,0.00010711]
[1672548779466,0.3,16536.0,16533.0,0.00010711]
[1672548779893,0.05,16535.0,16533.0,0.00010711]
[1672548780104,0.05,16535.0,16534.0,0.09]
[1672548780642,0.05,16535.0,16533.0,0.16210711]
[1672548780938,0.05,16535.0,16533.0,0.05010711]
[1672548781156,0.052,16535.0,16534.0,0.09]
[1672548782095,0.05,16535.0,16533.0,0.05610711]
[1672548783147,0.089,16535.0,16534.0,0.004]
[1672548783575,0.11047777,16535.0,16533.0,0.05610711]
[1672548783983,0.11047777,16535.0,16533.0,0.05010711]
[1672548784194,0.14947777,16535.0,16534.0,0.004]
[1672548784616,0.11047777,16535.0,16533.0,0.05610711]
[1672548785040,0.11047777,16535.0,16533.0,0.05010711]
[1672548785257,0.14947777,16535.0,16534.0,0.004]
[1672548786197,0.11047777,16535.0,16533.0,0.35680711]
[1672548786619,0.11047777,16535.0,16533.0,0.35080711]
[1672548786830,0.14947777,16535.0,16534.0,0.004]
[1672548787145,0.11047777,16535.0,16533.0,0.35080711]
[1672548787344,0.11047777,16535.0,16533.0,0.35680711]
[1672548787558,0.11047777,16535.0,16533.0,0.35080711]
[1672548787768,0.14947777,16535.0,16534.0,0.004]
[1672548788085,0.14947777,16535.0,16533.0,0.35080711]
[1672548788288,0.11047777,16535.0,16533.0,0.35680711]
[1672548789351,0.14947777,16535.0,16534.0,0.004]
[1672548789875,0.11047777,16535.0,16533.0,0.35680711]
[1672548790190,0.11047777,16535.0,16533.0,0.35080711]
[1672548790410,0.14947777,16535.0,16534.0,0.004]
[1672548790710,0.14947777,16535.0,16533.0,0.35080711]
[1672548790927,0.11047777,16535.0,16533.0,0.35680711]
[1672548791982,0.11047777,16535.0,16533.0,0.35080711]
[1672548792188,0.14947777,16535.0,16534.0,0.004]
[1672548792605,0.11047777,16535.0,16533.0,0.35680711]
[1672548793033,0.14947777,16535.0,16534.0,0.004]
[1672548793555,0.11047777,16535.0,16533.0,0.35680711]
[1672548793970,0.11047777,16535.0,16533.0,0.35080711]
[1672548794180,0.14947777,16535.0,16534.0,0.004]
[1672548795237,0.11047777,16535.0,16533.0,0.35680711]
[1672548796070,0.14947777,16535.0,16534.0,0.004]
[1672548796498,0.11047777,16535.0,16533.0,0.35080711]
[1672548796705,0.11047777,16535.0,16533.0,0.35680711]
[1672548797864,0.14947777,16535.0,16534.0,0.004]
[1672548798698,0.11047777,16535.0,16533.0,0.35680711]
[1672548799125,0.14947777,16535.0,16534.0,0.004]
[1672548799755,0.11047777,16535.0,16533.0,0.35680711]
[1672548800798,0.11047777,16535.0,16533.0,0.35080711]
[1672548801016,0.14947777,16535.0,16534.0,0.004]
[1672548801233,0.14947777,16535.0,16533.0,0.35080711]
[1672548801444,0.11047777,16535.0,16533.0,0.35680711]
[1672548802090,0.14947777,16535.0,16534.0,0.004]
[1672548802504,0.11047777,16535.0,16533.0,0.35680711]
[1672548804102,0.14947777,16535.0,16534.0,0.004]
[1672548804516,0.11047777,16535.0,16533.0,0.35080711]
[1672548804718,0.11047777,16535.0,16533.0,0.35680711]
[1672548805230,0.14947777,16535.0,16534.0,0.004]
[1672548805554,0.11047777,16535.0,16533.0,0.05010711]
[1672548805767,0.11047777,16535.0,16533.0,0.05610711]
[1672548807141,0.11047777,16535.0,16533.0,0.05010711]
[1672548807458,0.14947777,16535.0,16534.0,0.004]
[1672548807667,0.11047777,16535.0,16533.0,0.05610711]
[1672548813328,0.11047777,16535.0,16533.0,0.35680711]
[1672548818158,0.11047777,16535.0,16534.0,0.3007]
[1672548818802,0.11047777,16535.0,16533.0,0.05610711]
[1672548819328,0.11047777,16535.0,16533.0,0.05010711]
[1672548819539,0.14947777,16535.0,16534.0,0.004]
[1672548821003,0.11047777,16535.0,16533.0,0.05610711]
[1672548821219,0.11047777,16535.0,16533.0,0.35680711]
[1672548821554,0.11047777,16535.0,16534.0,0.004]
[1672548821631,0.14947777,16535.0,16534.0,0.004]
[1672548821848,0.14947777,16535.0,16533.0,0.35080711]
[1672548822060,0.11047777,16535.0,16533.0,0.35680711]
[1672548822915,0.14947777,16535.0,16534.0,0.004]
[1672548824683,0.11047777,16535.0,16533.0,0.35680711]
[1672548824890,0.11047777,16535.0,16533.0,0.05610711]
[1672548825104,0.11047777,16535.0,16533.0,0.35680711]
[1672548825627,0.14947777,16535.0,16534.0,0.004]
[1672548826261,0.11047777,16535.0,16533.0,0.35680711]
[1672548827722,0.11047777,16535.0,16534.0,0.004]
[1672548827723,0.14947777,16535.0,16534.0,0.004]
[1672548828666,0.11047777,16535.0,16533.0,0.35680711]
[1672548829091,0.09947777,16535.0,16534.0,0.004]
[1672548829614,0.09947777,16535.0,16533.0,0.35680711]
[1672548829615,0.06047777,16535.0,16533.0,0.35680711]
[1672548830766,0.09947777,16535.0,16534.0,0.004]
[1672548830965,0.11047777,16535.0,16533.0,0.35080711]
[1672548831177,0.11047777,16535.0,16533.0,0.35665446]
[1672548831385,0.06047777,16535.0,16533.0,0.35665446]
[1672548831605,0.09947777,16535.0,16534.0,0.004]
[1672548832028,0.06047777,16535.0,16533.0,0.35065446]
[1672548832232,0.06047777,16535.0,16533.0,0.35665446]
[1672548832866,0.06047777,16535.0,16533.0,0.05595446]
[1672548833279,0.09947777,16535.0,16534.0,0.004]
[1672548833713,0.06047777,16535.0,16533.0,0.35065446]
[1672548833913,0.06047777,16535.0,16533.0,0.35665446]
[1672548834122,0.06047777,16535.0,16533.0,0.35065446]
[1672548834328,0.09947777,16535.0,16534.0,0.004]
[1672548834758,0.06047777,16535.0,16533.0,0.35665446]
[1672548835177,0.06047777,16535.0,16533.0,0.35065446]
[1672548835490,0.09947777,16535.0,16534.0,0.004]
[1672548835700,0.09947777,16535.0,16534.0,0.3047]
[1672548836435,0.06047777,16535.0,16534.0,0.3007]
[1672548836965,0.09947777,16535.0,16534.0,0.3047]
[1672548837595,0.039,16535.0,16534.0,0.3047]
[1672548837803,0.039,16535.0,16534.0,0.004]
[1672548838013,0.039,16535.0,16534.0,0.3047]
[1672548838964,0.039,16535.0,16534.0,0.004]
[1672548840119,0.039,16535.0,16534.0,0.3047]
[1672548843689,0.09947777,16535.0,16534.0,0.3047]
[1672548844200,0.09947777,16535.0,16534.0,0.004]
[1672548849999,0.09947777,16535.0,16534.0,0.3047]
[1672548859876,0.09947777,16535.0,16534.0,0.004]
[1672548860090,0.09947777,16535.0,16534.0,0.3047]
[1672548868093,0.09947777,16535.0,16534.0,0.004]
[1672548868400,0.09947777,16535.0,16534.0,0.3047]
[1672548878375,0.09947777,16535.0,16534.0,0.004]
[1672548878586,0.09947777,16535.0,16534.0,0.3047]
[1672548878791,0.09947777,16535.0,16534.0,0.30446119]
[1672548883846,0.09947777,16535.0,16534.0,0.00376119]
[1672548884057,0.09947777,16535.0,16534.0,0.30446119]
[1672548885222,0.09947777,16535.0,16534.0,0.00376119]
[1672548885432,0.09947777,16535.0,16534.0,0.30446119]
[1672548892899,0.09947777,16535.0,16534.0,0.00376119]
[1672548893217,0.09947777,16535.0,16534.0,0.30446119]
[1672548895846,0.09947777,16535.0,16534.0,0.00376119]
[1672548896163,0.09947777,16535.0,16534.0,0.30446119]
[1672548897741,0.039,16535.0,16534.0,0.30446119]
[1672548903725,0.09947777,16535.0,16534.0,0.30446119]
[1672548905203,0.09947777,16535.0,16534.0,0.00376119]
[1672548905413,0.09947777,16535.0,16534.0,0.30446119]
[1672548906138,0.09947777,16535.0,16534.0,0.00376119]
[1672548906350,0.09947777,16535.0,16534.0,0.30446119]
[1672548912984,0.09947777,16535.0,16534.0,0.00376119]
[1672548913199,0.09947777,16535.0,16534.0,0.30446119]
[1672548915823,0.09947777,16535.0,16534.0,0.00376119]
[1672548916034,0.09947777,16535.0,16534.0,0.30446119]
[1672548917924,0.09947777,16535.0,16534.0,0.00376119]
[1672548918133,0.09947777,16535.0,16534.0,0.30446119]
[1672548924969,0.09947777,16535.0,16534.0,0.00376119]
[1672548925179,0.09947777,16535.0,16534.0,0.30446119]
[1672548925383,0.09947777,16535.0,16534.0,0.00376119]
[1672548925595,0.09947777,16535.0,16534.0,0.30446119]
[1672548926327,0.09947777,16535.0,16534.0,0.30430307]
[1672548929384,0.09947777,16535.0,16534.0,0.00360307]
[1672548929596,0.09947777,16535.0,16534.0,0.30430307]
[1672548951377,0.09947777,16535.0,16534.0,0.00360307]
[1672548951582,0.09947777,16535.0,16534.0,0.30430307]
[1672548954939,0.09947777,16535.0,16534.0,0.00360307]
[1672548955466,0.09947777,16535.0,16534.0,0.30430307]
[1672548957780,0.039,16535.0,16534.0,0.30430307]
[1672548963880,0.09947777,16535.0,16534.0,0.30430307]
[1672548965561,0.09947777,16535.0,16534.0,0.00360307]
[1672548965989,0.14947777,16535.0,16534.0,0.00360307]
[1672548966614,0.14947777,16535.0,16534.0,0.30430307]
[1672548969978,0.14947777,16535.0,16534.0,0.00360307]
[1672548977019,0.14947777,16535.0,16534.0,0.00337669]
[1672548987646,0.14947777,16535.0,16534.0,0.05337669]
[1672548987861,0.14941713,16535.0,16534.0,0.05337669]
[1672548988385,0.14941713,16535.0,16534.0,0.00337669]
[1672549000569,0.45011713,16535.0,16534.0,0.00337669]
[1672549002149,0.14941713,16535.0,16534.0,0.00337669]
[1672549002359,0.45011713,16535.0,16534.0,0.00337669]
[1672549005192,0.14941713,16535.0,16534.0,0.00337669]
[1672549014959,0.09941713,16535.0,16534.0,0.00337669]
[1672549017800,0.03893936,16535.0,16534.0,0.00337669]
[1672549024005,0.09941713,16535.0,16534.0,0.00337669]
[1672549041038,0.09941713,16535.0,16534.0,0.00322067]
[1672549041991,0.0992698,16535.0,16534.0,0.00322067]
[1672549056073,1.04857657,16535.0,16534.0,0.00322067]
[1672549058070,1.34927657,16535.0,16534.0,0.00322067]
[1672549058279,0.3999698,16535.0,16534.0,0.00322067]
[1672549060913,0.0992698,16535.0,16534.0,0.00322067]
[1672549061220,0.4499698,16535.0,16534.0,0.00322067]
[1672549065850,0.1492698,16535.0,16534.0,0.00322067]
[1672549066155,0.4499698,16535.0,16534.0,0.00322067]
[1672549068573,0.1492698,16535.0,16534.0,0.00322067]
[1672549068793,0.4499698,16535.0,16534.0,0.00322067]
[1672549076787,0.1492698,16535.0,16534.0,0.00322067]
[1672549076992,0.4499698,16535.0,16534.0,0.00322067]
[1672549078056,0.38949203,16535.0,16534.0,0.00322067]
[1672549083937,0.4499698,16535.0,16534.0,0.00322067]
[1672549089916,1.39927657,16535.0,16534.0,0.00322067]
[1672549090873,1.09857657,16535.0,16534.0,0.00322067]
[1672549091395,1.09857657,16535.0,16534.0,0.00314223]
[1672549094448,0.1492698,16535.0,16534.0,0.00314223]
[1672549103165,1.09857657,16535.0,16534.0,0.00314223]
[1672549107583,1.04857657,16535.0,16534.0,0.00314223]
[1672549107784,0.0992698,16535.0,16534.0,0.00314223]
[1672549108000,0.1492698,16535.0,16534.0,0.00314223]
[1672549109998,1.09857657,16535.0,16534.0,0.00314223]
[1672549112418,0.1492698,16535.0,16534.0,0.00314223]
[1672549114516,0.14947777,16535.0,16534.0,0.005]
[1672549120392,0.14947777,16535.0,16534.0,0.3057]
[1672549121448,0.14940416,16535.0,16534.0,0.3057]
[1672549137960,0.089,16535.0,16534.0,0.3057]
[1672549144062,0.14947777,16535.0,16534.0,0.3057]
[1672549173490,0.14947777,16535.0,16534.0,0.305488]
[1672549177262,0.14947777,16535.0,16534.0,0.004788]
[1672549177894,0.45017777,16535.0,16534.0,0.004788]
[1672549178097,1.05467777,16535.0,16534.0,0.004788]
[1672549179251,1.35467777,16535.0,16534.0,0.004788]
[1672549179459,1.35467777,16535.0,16534.0,1e-08]
[1672549180088,5.999e-05,16533.0,16528.0,0.3007]
[1672549180301,0.3007,16532.0,16528.0,0.3007]
[1672549180726,0.05,16531.0,16529.0,0.05]
[1672549181356,0.05,16531.0,16528.0,0.3007]
[1672549181564,0.05,16531.0,16529.0,0.05]
[1672549181785,0.012,16532.0,16529.0,0.05]
[1672549182617,0.05005999,16533.0,16529.0,0.05]
[1672549182830,0.012,16531.0,16530.0,0.3007]
[1672549183039,0.05005999,16533.0,16530.0,0.3007]
[1672549183254,0.013,16532.0,16531.0,0.05]
[1672549183677,0.05005999,16533.0,16531.0,0.05]
[1672549184302,0.014,16532.0,16531.0,0.075]
[1672549185367,0.06405999,16533.0,16531.0,0.075]
[1672549185885,0.014,16532.0,16531.0,0.075]
[1672549186405,0.06405999,16533.0,16531.0,0.075]
[1672549186820,0.06405999,16533.0,16531.0,0.05]
[1672549186821,0.05005999,16533.0,16531.0,0.05]
[1672549187135,0.014,16532.0,16531.0,0.075]
[1672549187557,0.06047777,16535.0,16531.0,0.075]
[1672549187769,0.06047777,16535.0,16534.0,0.3007]
[1672549188396,0.06047777,16535.0,16534.0,0.3507]
[1672549188828,0.06647777,16535.0,16534.0,0.3757]
[1672549198176,0.006,16535.0,16534.0,0.3757]
[1672549204172,0.06647777,16535.0,16534.0,0.3757]
[1672549205862,0.13147777,16535.0,16534.0,0.3557]
[1672549206181,0.06047777,16535.0,16534.0,0.3507]
[1672549206391,0.06647777,16535.0,16534.0,0.3757]
[1672549211752,0.06647777,16535.0,16534.0,0.075]
[1672549211952,0.06647777,16535.0,16534.0,0.3757]
[1672549229732,0.06647777,16535.0,16534.0,0.075]
[1672549229942,0.06647777,16535.0,16534.0,0.3757]
[1672549236767,0.06647777,16535.0,16534.0,0.075]
[1672549236980,0.06647777,16535.0,16534.0,0.3757]
[1672549237713,0.06647777,16535.0,16534.0,0.37546388]
[1672549253800,0.06647777,16535.0,16534.0,0.07476388]
[1672549254000,0.06647777,16535.0,16534.0,0.37546388]
[1672549258205,0.006,16535.0,16534.0,0.37546388]
[1672549264102,0.06647777,16535.0,16534.0,0.37546388]
[1672549273038,0.06647777,16535.0,16534.0,0.07476388]
[1672549273356,0.06647777,16535.0,16534.0,0.37546388]
[1672549286072,0.06647777,16535.0,16534.0,0.07476388]
[1672549286286,0.06647777,16535.0,16534.0,0.37546388]
[1672549289981,0.06647777,16535.0,16534.0,0.3752988]
[1672549296056,0.06647777,16535.0,16534.0,0.0745988]
[1672549296259,0.06647777,16535.0,16534.0,0.3752988]
[1672549300569,0.06647777,16535.0,16534.0,0.0745988]
[1672549300785,0.06647777,16535.0,16534.0,0.3752988]
[1672549304254,0.06647777,16535.0,16534.0,0.0745988]
[1672549304468,0.06647777,16535.0,16534.0,0.3752988]
[1672549311077,0.06647777,16535.0,16534.0,0.0745988]
[1672549311294,0.06647777,16535.0,16534.0,0.3752988]
[1672549316863,0.06647777,16535.0,16534.0,0.0745988]
[1672549317075,0.06647777,16535.0,16534.0,0.3752988]
[1672549317389,0.006,16535.0,16534.0,0.3752988]
[1672549323271,0.06647777,16535.0,16534.0,0.3752988]
[1672549323467,0.06647777,16535.0,16534.0,0.0745988]
[1672549323683,0.06647777,16535.0,16534.0,0.3752988]
[1672549323901,0.06647777,16535.0,16534.0,0.0745988]
[1672549324107,0.06647777,16535.0,16534.0,0.3752988]
[1672549328007,0.06647777,16535.0,16534.0,0.0745988]
[1672549328319,0.06647777,16535.0,16534.0,0.3752988]
[1672549329045,0.06632221,16535.0,16534.0,0.3752988]
[1672549339983,0.06632221,16535.0,16534.0,0.0745988]
[1672549340296,0.06632221,16535.0,16534.0,0.3752988]
[1672549342919,0.06632221,16535.0,16534.0,0.0745988]
[1672549343133,0.06632221,16535.0,16534.0,0.3752988]
[1672549356057,0.06632221,16535.0,16534.0,0.0745988]
[1672549356275,0.06632221,16535.0,16534.0,0.3752988]
[1672549372670,0.06632221,16535.0,16534.0,0.0745988]
[1672549372876,0.06632221,16535.0,16534.0,0.3752988]
[1672549373195,0.06632221,16535.0,16534.0,0.07450366]
[1672549373398,0.06632221,16535.0,16534.0,0.37520366]
[1672549374871,0.06632221,16535.0,16534.0,0.07450366]
[1672549375084,0.06632221,16535.0,16534.0,0.37520366]
[1672549377288,0.00584444,16535.0,16534.0,0.37520366]
[1672549383390,0.06632221,16535.0,16534.0,0.37520366]
[1672549393290,0.06624614,16535.0,16534.0,0.37520366]
[1672549404427,0.06624614,16535.0,16534.0,0.07450366]
[1672549404741,0.06624614,16535.0,16534.0,0.37520366]
[1672549405057,0.06624614,16535.0,16534.0,0.07450366]
[1672549405258,0.06624614,16535.0,16534.0,0.37520366]